bitfinex-derivatives/quotes_BTCF0:USTF0_20241217
["timestamp","ask_amount","ask_price","bid_price","bid_amount"]
[1734449675107,0.408067,105780.0,105750.0,0.88675408]
[1734449675316,0.408067,105780.0,105760.0,0.21835408]
[1734449675520,0.408067,105780.0,105750.0,1.18675408]
[1734449675725,0.00048001,105790.0,105770.0,0.57915408]
[1734449676019,0.147257,105800.0,105780.0,0.3608]
[1734449676215,0.047261,105790.0,105770.0,0.3608]
[1734449676410,1.647257,105800.0,105770.0,0.57915408]
[1734449676718,0.001,105780.0,105770.0,1.13297]
[1734449676921,0.1,105800.0,105780.0,1.044]
[1734449677115,0.1,105800.0,105790.0,1.395]
[1734449677516,0.101,105800.0,105790.0,1.0342]
[1734449677706,0.148256,105800.0,105790.0,1.0342]
[1734449678324,0.101,105800.0,105790.0,1.0342]
[1734449678717,0.36661008,105800.0,105790.0,1.0342]
[1734449679018,0.047268,105780.0,105750.0,0.9969386]
[1734449679218,0.047268,105780.0,105750.0,1.70669015]
[1734449679620,1.547268,105780.0,105760.0,0.6667]
[1734449679811,0.57915408,105790.0,105760.0,1.0818]
[1734449679812,0.62641608,105790.0,105760.0,1.0818]
[1734449680222,1.502,105780.0,105760.0,1.0818]
[1734449680624,0.002,105780.0,105760.0,1.0818]
[1734449681020,0.002,105780.0,105770.0,0.3059]
[1734449681221,0.002,105780.0,105750.0,0.89271173]
[1734449681222,0.62841908,105780.0,105750.0,0.70269015]
[1734449681424,0.26562808,105760.0,105750.0,0.017]
[1734449681619,0.62642808,105760.0,105750.0,0.017]
[1734449682023,0.62642808,105760.0,105750.0,0.008]
[1734449682319,0.26562808,105760.0,105750.0,0.008]
[1734449682522,0.047274,105760.0,105740.0,0.36221808]
[1734449682919,0.001,105760.0,105740.0,0.36221808]
[1734449683127,0.001,105760.0,105750.0,0.3608]
[1734449683318,0.21935408,105760.0,105750.0,0.3026]
[1734449683513,0.26663108,105760.0,105750.0,0.3026]
[1734449683825,0.002,105760.0,105750.0,0.3026]
[1734449684324,0.001,105760.0,105750.0,0.3026]
[1734449684725,0.001,105760.0,105750.0,0.75016726]
[1734449685026,0.001,105760.0,105750.0,0.3026]
[1734449685428,0.001,105760.0,105750.0,0.6634]
[1734449685625,0.40948076,105790.0,105750.0,1.55103208]
[1734449685829,0.40948076,105790.0,105770.0,0.3608]
[1734449685830,0.04868076,105790.0,105770.0,0.3608]
[1734449686128,0.04868076,105790.0,105760.0,1.17264358]
[1734449686326,0.00141876,105790.0,105760.0,1.69099766]
[1734449686529,0.00141876,105790.0,105770.0,1.11659966]
[1734449686727,0.00241876,105790.0,105770.0,1.11659966]
[1734449686929,0.00241876,105790.0,105780.0,0.3083]
[1734449687428,0.00241876,105790.0,105780.0,0.6691]
[1734449687625,0.00241876,105790.0,105780.0,0.88745408]
[1734449687935,0.00241876,105790.0,105780.0,0.6691]
[1734449688518,0.58157284,105790.0,105760.0,0.808193]
[1734449688733,0.00241876,105790.0,105770.0,0.3608]
[1734449688922,0.00241876,105790.0,105770.0,0.7917]
[1734449689230,0.00241876,105790.0,105780.0,0.3608]
[1734449689428,0.00241876,105790.0,105780.0,0.7592]
[1734449689730,0.00241876,105790.0,105780.0,1.0643]
[1734449691127,0.00141876,105790.0,105780.0,1.0643]
[1734449691428,0.00241876,105790.0,105780.0,1.0643]
[1734449691831,0.00141876,105790.0,105780.0,1.0643]
[1734449692037,0.001,105790.0,105780.0,1.0643]
[1734449692333,0.14242949,105790.0,105780.0,1.0643]
[1734449692632,0.55049049,105790.0,105770.0,0.44800548]
[1734449692829,0.55049049,105790.0,105770.0,0.80880548]
[1734449693020,0.409061,105790.0,105770.0,0.80880548]
[1734449693424,0.3618,105790.0,105770.0,0.80880548]
[1734449693732,0.3618,105790.0,105780.0,0.84025127]
[1734449693921,0.55049049,105790.0,105780.0,0.84025127]
[1734449694120,0.84949049,105790.0,105780.0,0.10330058]
[1734449694334,0.84949049,105790.0,105770.0,0.29287451]
[1734449694335,0.047265,105780.0,105770.0,0.29287451]
[1734449694538,0.047265,105780.0,105760.0,0.50354358]
[1734449694539,0.04727,105770.0,105760.0,0.50354358]
[1734449694727,0.047279,105750.0,105720.0,1.95099374]
[1734449694928,0.54951249,105740.0,105720.0,1.33374529]
[1734449695225,0.54951249,105740.0,105720.0,0.774]
[1734449695426,0.408083,105740.0,105720.0,0.774]
[1734449695629,0.14142949,105730.0,105710.0,0.52355686]
[1734449695820,0.14142949,105720.0,105710.0,0.52355686]
[1734449696025,0.62644881,105730.0,105710.0,0.52355686]
[1734449696225,0.408084,105740.0,105710.0,0.37963851]
[1734449696424,0.3608,105730.0,105710.0,0.01883851]
[1734449696624,0.408089,105730.0,105720.0,0.008]
[1734449696928,0.62644681,105730.0,105720.0,0.008]
[1734449697136,0.62644681,105730.0,105710.0,0.50471835]
[1734449697137,0.62644681,105730.0,105700.0,1.14741868]
[1734449697434,0.3608,105720.0,105710.0,0.008]
[1734449697746,0.001,105730.0,105710.0,0.51271835]
[1734449697935,0.048289,105730.0,105710.0,1.07246364]
[1734449698328,0.049289,105730.0,105710.0,0.51271835]
[1734449698540,0.049289,105730.0,105710.0,0.008]
[1734449698735,0.048289,105730.0,105700.0,1.53633822]
[1734449699036,0.62744681,105730.0,105710.0,0.009]
[1734449699224,0.62644981,105720.0,105710.0,0.009]
[1734449699422,0.047292,105720.0,105710.0,0.017]
[1734449699832,0.047292,105720.0,105710.0,0.009]
[1734449700235,0.410088,105730.0,105710.0,0.009]
[1734449700630,0.047296,105710.0,105700.0,1.08146364]
[1734449700837,0.62645381,105710.0,105700.0,0.017]
[1734449701427,0.62645381,105710.0,105700.0,0.008]
[1734449701636,0.047301,105700.0,105680.0,0.00141914]
[1734449701837,0.047305,105690.0,105680.0,0.00141914]
[1734449702134,0.408105,105690.0,105680.0,0.50711157]
[1734449702332,0.047305,105690.0,105680.0,0.50711157]
[1734449702528,0.62645881,105700.0,105680.0,0.50711157]
[1734449702529,0.408101,105700.0,105680.0,0.50711157]
[1734449702741,0.3618,105710.0,105680.0,1.08485024]
[1734449703036,0.3618,105710.0,105690.0,0.77135524]
[1734449703334,0.001,105710.0,105690.0,1.28469243]
[1734449703534,0.048297,105710.0,105690.0,1.28469243]
[1734449703727,0.001,105700.0,105690.0,0.50569243]
[1734449703928,0.408089,105730.0,105690.0,1.08485024]
[1734449704136,0.408089,105730.0,105700.0,0.3608]
[1734449704533,0.21835781,105720.0,105690.0,0.86649243]
[1734449704835,0.047301,105700.0,105690.0,0.50569243]
[1734449705038,0.57915781,105700.0,105680.0,1.25239243]
[1734449705228,0.57915781,105700.0,105680.0,0.50569243]
[1734449705229,0.047305,105690.0,105680.0,0.50569243]
[1734449705538,0.047305,105690.0,105670.0,1.29014845]
[1734449705735,0.047305,105690.0,105670.0,0.6729]
[1734449705925,0.62646081,105700.0,105670.0,0.6729]
[1734449706129,0.047306,105690.0,105670.0,0.6729]
[1734449706330,0.047306,105690.0,105680.0,0.50508805]
[1734449706536,0.409106,105690.0,105680.0,0.45575935]
[1734449706827,0.62746381,105690.0,105680.0,0.45575935]
[1734449707438,0.26666381,105690.0,105680.0,0.45575935]
[1734449707647,0.62746381,105690.0,105680.0,0.45575935]
[1734449707938,0.62846381,105690.0,105680.0,0.46475935]
[1734449708131,0.62746381,105690.0,105680.0,0.51408805]
[1734449708429,0.58015781,105690.0,105680.0,1.07484831]
[1734449708635,2.42646381,105690.0,105680.0,1.00977572]
[1734449708931,2.74996381,105690.0,105680.0,0.44856164]
[1734449709239,2.74996381,105690.0,105660.0,1.00977058]
[1734449709240,0.047314,105670.0,105660.0,1.00977058]
[1734449709444,0.62647181,105670.0,105660.0,1.00977058]
[1734449709747,0.047319,105660.0,105650.0,0.44856164]
[1734449710045,0.62647681,105660.0,105650.0,0.44856164]
[1734449710431,0.047323,105650.0,105640.0,0.39627931]
[1734449710633,0.26568081,105650.0,105640.0,0.39627931]
[1734449710831,0.26568081,105650.0,105640.0,0.39602274]
[1734449711046,0.047323,105650.0,105640.0,0.39602274]
[1734449711437,0.047323,105650.0,105640.0,1.14867415]
[1734449711737,0.048323,105650.0,105640.0,0.79687415]
[1734449712633,0.048323,105650.0,105640.0,0.80287415]
[1734449712634,0.049323,105650.0,105640.0,0.80287415]
[1734449713043,0.002,105650.0,105640.0,1.16346319]
[1734449713233,0.002,105650.0,105640.0,1.22038438]
[1734449713435,0.049323,105650.0,105640.0,1.22038438]
[1734449713642,0.049323,105650.0,105640.0,1.611783]
[1734449713643,0.002,105650.0,105640.0,1.611783]
[1734449714040,0.04732,105660.0,105640.0,1.611783]
[1734449714041,0.047315,105670.0,105640.0,0.77182274]
[1734449714346,0.047315,105670.0,105650.0,1.178731]
[1734449714542,0.047315,105670.0,105650.0,0.7873]
[1734449714745,0.396591,105680.0,105660.0,0.3608]
[1734449715240,0.002,105670.0,105660.0,0.69609824]
[1734449715439,0.002,105670.0,105660.0,0.6960806]
[1734449715638,0.002,105670.0,105660.0,0.3608]
[1734449715839,0.26667181,105670.0,105660.0,0.3608]
[1734449716038,0.26667181,105670.0,105650.0,0.81854578]
[1734449716039,0.047319,105660.0,105650.0,0.81854578]
[1734449716248,0.26567681,105660.0,105650.0,0.81782578]
[1734449716645,0.62647681,105660.0,105650.0,0.4265]
[1734449716950,0.26567681,105660.0,105650.0,0.39132578]
[1734449717448,0.047323,105650.0,105640.0,0.39524107]
[1734449717643,0.047323,105650.0,105640.0,0.00391529]
[1734449717851,0.047323,105650.0,105640.0,0.36471529]
[1734449719052,0.048323,105650.0,105640.0,0.37171529]
[1734449719252,0.001,105650.0,105640.0,0.37171529]
[1734449719444,0.048323,105650.0,105640.0,0.37171529]
[1734449719847,0.049323,105650.0,105640.0,0.38071529]
[1734449720545,0.047323,105660.0,105640.0,0.38071529]
[1734449720745,0.047323,105660.0,105650.0,0.761]
[1734449721341,0.26568081,105660.0,105650.0,0.761]
[1734449722053,0.26668081,105660.0,105650.0,0.761]
[1734449722647,0.26568081,105660.0,105650.0,0.3618]
[1734449722845,0.26668081,105660.0,105650.0,0.3618]
[1734449723243,0.048323,105660.0,105650.0,0.75312578]
[1734449724149,0.047323,105660.0,105650.0,0.3618]
[1734449724349,0.094634,105670.0,105650.0,0.75312578]
[1734449724557,0.18909677,105670.0,105660.0,0.3608]
[1734449724749,0.01752693,105680.0,105660.0,1.20068742]
[1734449724750,0.2066177,105680.0,105660.0,1.20068742]
[1734449724949,0.04731,105680.0,105670.0,0.3608]
[1734449725151,0.18909077,105680.0,105670.0,0.3608]
[1734449725453,0.33087154,105680.0,105670.0,0.75212578]
[1734449725750,0.33087154,105680.0,105670.0,0.3608]
[1734449726254,0.18909077,105680.0,105670.0,0.3608]
[1734449726453,0.18909077,105680.0,105670.0,0.3618]
[1734449726751,0.18909077,105680.0,105670.0,0.32559375]
[1734449727754,0.18909077,105680.0,105670.0,0.32459375]
[1734449727952,0.04731,105680.0,105670.0,0.71591953]
[1734449728150,0.18909077,105680.0,105670.0,0.71591953]
[1734449728454,1.68909077,105680.0,105670.0,0.71591953]
[1734449728659,2.49167154,105680.0,105670.0,0.36526778]
[1734449728859,0.047319,105660.0,105650.0,0.80936164]
[1734449729058,0.18909977,105660.0,105650.0,0.80936164]
[1734449729445,0.18909977,105660.0,105650.0,1.31399349]
[1734449729659,0.18909977,105660.0,105650.0,0.95319349]
[1734449729852,0.18909977,105660.0,105650.0,0.44856164]
[1734449730470,0.047319,105660.0,105650.0,0.80936164]
[1734449732762,0.047319,105660.0,105650.0,0.86543185]
[1734449733148,0.047319,105660.0,105650.0,0.81229786]
[1734449733353,0.047319,105660.0,105650.0,1.31718208]
[1734449733550,0.047319,105660.0,105650.0,0.81255023]
[1734449734262,0.047319,105660.0,105650.0,1.09524943]
[1734449734460,0.047319,105660.0,105650.0,2.04786586]
[1734449734652,0.047319,105660.0,105650.0,0.86932708]
[1734449735348,0.13847215,105660.0,105650.0,0.54290283]
[1734449735662,0.18579115,105660.0,105650.0,0.93087128]
[1734449735957,0.18579115,105660.0,105650.0,0.54621731]
[1734449736154,0.18579115,105660.0,105650.0,0.92200894]
[1734449736351,0.047319,105660.0,105650.0,1.10742625]
[1734449736557,0.047319,105660.0,105650.0,0.86970635]
[1734449737350,0.047319,105660.0,105650.0,1.05553427]
[1734449737551,0.06470024,105670.0,105650.0,1.06439661]
[1734449737755,0.06470024,105670.0,105660.0,0.3608]
[1734449738161,0.20648101,105670.0,105660.0,0.3608]
[1734449738349,0.047319,105660.0,105650.0,0.92200894]
[1734449738553,0.18909977,105660.0,105650.0,1.10631385]
[1734449738754,0.047319,105660.0,105650.0,1.10631385]
[1734449738954,0.047319,105660.0,105650.0,1.61598096]
[1734449739172,0.20060453,105670.0,105650.0,0.76005038]
[1734449739462,0.05882376,105670.0,105660.0,0.61732984]
[1734449739652,0.047319,105660.0,105650.0,0.3608]
[1734449739861,0.047319,105660.0,105650.0,1.11523418]
[1734449740365,0.047319,105660.0,105650.0,1.39040229]
[1734449740659,0.047319,105660.0,105650.0,0.7672282]
[1734449740859,0.047319,105660.0,105650.0,1.39039811]
[1734449741055,0.047319,105660.0,105650.0,1.39546902]
[1734449741254,0.047319,105660.0,105650.0,0.7769603]
[1734449741459,0.01738624,105670.0,105650.0,0.7769603]
[1734449741460,0.047316,105670.0,105650.0,0.7769603]
[1734449741661,0.047316,105670.0,105660.0,0.7563]
[1734449741864,0.047316,105670.0,105660.0,1.1724603]
[1734449742060,0.047316,105670.0,105660.0,1.79563732]
[1734449742266,0.18909677,105670.0,105660.0,1.43483732]
[1734449742468,0.047316,105670.0,105660.0,1.11986162]
[1734449742779,0.047316,105670.0,105660.0,0.7769603]
[1734449743157,0.047316,105670.0,105660.0,1.4001253]
[1734449743357,0.047316,105670.0,105660.0,1.74307108]
[1734449743567,0.047316,105670.0,105660.0,0.81573847]
[1734449743865,1.547316,105670.0,105660.0,0.75910149]
[1734449744259,1.547316,105670.0,105660.0,0.19257347]
[1734449744652,1.547316,105670.0,105660.0,0.70251453]
[1734449744862,1.547316,105670.0,105660.0,0.19257347]
[1734449744863,1.68909677,105670.0,105660.0,0.19257347]
[1734449745065,0.14178077,105670.0,105660.0,0.79579171]
[1734449745368,0.14178077,105670.0,105660.0,0.17262671]
[1734449745369,0.54989977,105670.0,105660.0,0.17262671]
[1734449745664,0.18909977,105670.0,105660.0,0.17262671]
[1734449745856,0.18909977,105670.0,105660.0,0.79591937]
[1734449746061,0.18909977,105670.0,105660.0,0.56662977]
[1734449746773,1.68909977,105670.0,105660.0,0.56662977]
[1734449746975,0.047319,105670.0,105660.0,0.56662977]
[1734449747263,0.047319,105670.0,105660.0,0.93629443]
[1734449747463,0.047319,105670.0,105660.0,1.19877668]
[1734449747668,0.18909977,105670.0,105660.0,0.56661936]
[1734449748063,0.047319,105660.0,105650.0,0.86373281]
[1734449748266,0.14004251,105660.0,105650.0,0.86373281]
[1734449748461,0.408119,105670.0,105650.0,0.86373281]
[1734449748657,0.54989977,105670.0,105660.0,1.19000824]
[1734449748868,0.54989977,105670.0,105660.0,0.56667059]
[1734449749578,0.18909977,105670.0,105660.0,0.56667059]
[1734449749962,0.18909977,105670.0,105660.0,0.51000649]
[1734449750373,0.047319,105660.0,105650.0,0.3955]
[1734449750678,0.047319,105660.0,105650.0,0.85486815]
[1734449750973,0.047319,105660.0,105650.0,1.47820906]
[1734449751161,0.047319,105660.0,105650.0,0.85486815]
[1734449751567,1.53639091,105680.0,105650.0,1.23181173]
[1734449751770,0.06456678,105680.0,105670.0,1.18993979]
[1734449751975,0.06456678,105680.0,105670.0,0.3608]
[1734449752273,0.06456678,105680.0,105670.0,0.45936815]
[1734449752463,0.06456678,105680.0,105670.0,0.09856815]
[1734449752863,0.06456678,105680.0,105670.0,0.45936815]
[1734449753065,0.06456678,105680.0,105670.0,0.8926645]
[1734449753268,0.00142015,105690.0,105670.0,1.03444527]
[1734449753468,0.07597502,105690.0,105680.0,0.6854]
[1734449753671,0.04872715,105690.0,105680.0,0.88353354]
[1734449754073,0.04872715,105690.0,105680.0,1.2172645]
[1734449754274,0.01923702,105690.0,105680.0,1.2172645]
[1734449754977,0.01923702,105690.0,105680.0,1.6391645]
[1734449755276,0.01923702,105690.0,105680.0,1.81463951]
[1734449756066,0.01923702,105690.0,105680.0,1.6391645]
[1734449756572,0.047302,105700.0,105680.0,1.78094527]
[1734449756873,0.047302,105700.0,105690.0,1.4091]
[1734449757077,0.047302,105700.0,105690.0,1.84239635]
[1734449757280,0.047302,105700.0,105690.0,1.9409645]
[1734449757809,0.047302,105700.0,105690.0,0.95272331]
[1734449757810,0.54988277,105700.0,105690.0,0.95272331]
[1734449757966,0.047314,105670.0,105660.0,1.0914971]
[1734449758276,0.09434973,105670.0,105660.0,0.09914672]
[1734449758462,0.14166373,105670.0,105660.0,0.09914672]
[1734449759161,0.50246373,105670.0,105660.0,0.56521776]
[1734449759362,0.047319,105660.0,105650.0,0.97641776]
[1734449759565,0.54989977,105660.0,105650.0,0.08013671]
[1734449759867,0.84989977,105660.0,105650.0,0.08013671]
[1734449760061,0.84989977,105660.0,105650.0,0.07613671]
[1734449760062,0.047319,105660.0,105650.0,0.07613671]
[1734449760371,0.047323,105650.0,105640.0,0.440852]
[1734449760576,0.047323,105650.0,105640.0,0.080052]
[1734449760879,0.047323,105650.0,105640.0,0.440852]
[1734449762677,0.047315,105670.0,105640.0,0.88263277]
[1734449762983,0.04879896,105680.0,105660.0,0.86338077]
[1734449763176,0.00148796,105680.0,105670.0,1.3828]
[1734449763368,0.7589129,105720.0,105670.0,1.60071748]
[1734449763369,0.19049367,105720.0,105670.0,1.60071748]
[1734449763572,0.0487129,105720.0,105710.0,0.3608]
[1734449763765,0.0487129,105720.0,105710.0,0.34188]
[1734449764073,0.0487129,105720.0,105710.0,0.90672253]
[1734449764274,0.0487129,105720.0,105710.0,0.34188]
[1734449764577,0.0487129,105720.0,105710.0,0.34194736]
[1734449764981,0.26786898,105730.0,105710.0,0.48372813]
[1734449765175,0.047287,105730.0,105720.0,0.3608]
[1734449765673,0.047287,105730.0,105720.0,0.683]
[1734449765866,0.047287,105730.0,105720.0,0.87957138]
[1734449766468,0.00150212,105760.0,105720.0,1.02135215]
[1734449766668,0.00150212,105760.0,105740.0,0.92390244]
[1734449766669,0.047281,105750.0,105740.0,0.92390244]
[1734449766878,0.047281,105750.0,105740.0,1.54331512]
[1734449767073,0.04877712,105760.0,105740.0,1.67936483]
[1734449767382,0.04877712,105760.0,105750.0,0.98028004]
[1734449767383,0.00150212,105760.0,105750.0,0.98028004]
[1734449767677,1.547266,105780.0,105750.0,2.19025551]
[1734449767881,1.547266,105780.0,105770.0,0.92304396]
[1734449768181,2.04984677,105780.0,105770.0,0.56216617]
[1734449768368,1.68904677,105780.0,105770.0,1.01137884]
[1734449768573,0.07511418,105790.0,105770.0,1.37217884]
[1734449768774,0.047262,105790.0,105780.0,0.80993808]
[1734449769078,0.047262,105790.0,105780.0,0.86615188]
[1734449769277,0.047262,105790.0,105780.0,1.31463682]
[1734449769468,1.6,105800.0,105780.0,0.80928494]
[1734449769469,0.1,105800.0,105780.0,0.80928494]
[1734449769669,0.147256,105800.0,105790.0,0.3608]
[1734449769881,0.28903677,105800.0,105790.0,0.3608]
[1734449770082,0.36534506,105800.0,105790.0,0.3608]
[1734449770274,0.147256,105800.0,105790.0,0.3608]
[1734449770470,0.147256,105800.0,105790.0,0.36091337]
[1734449770677,0.1,105800.0,105790.0,0.36091337]
[1734449772080,0.147256,105800.0,105790.0,0.36091337]
[1734449772382,0.1,105800.0,105790.0,0.36091337]
[1734449772680,0.36534506,105800.0,105790.0,0.36091337]
[1734449772891,0.72614506,105800.0,105790.0,0.00011337]
[1734449773178,0.147256,105800.0,105790.0,0.36091337]
[1734449773383,0.1,105800.0,105790.0,0.36091337]
[1734449773877,0.147256,105800.0,105790.0,0.36091337]
[1734449774083,0.1,105800.0,105790.0,0.36091337]
[1734449774978,0.04867177,105810.0,105790.0,0.57900243]
[1734449775180,0.00141877,105810.0,105800.0,1.08456923]
[1734449775381,0.04867077,105810.0,105800.0,1.08456923]
[1734449776183,0.04867077,105810.0,105800.0,0.76676923]
[1734449777175,1.5,105820.0,105800.0,0.76676923]
[1734449777176,0.07416923,105830.0,105800.0,0.98478906]
[1734449777383,0.07416923,105830.0,105820.0,0.3608]
[1734449777580,0.07416923,105830.0,105810.0,0.00011257]
[1734449777581,0.047247,105820.0,105810.0,0.36091257]
[1734449777972,0.047244,105830.0,105810.0,0.36091257]
[1734449778179,0.047244,105830.0,105820.0,0.3608]
[1734449778576,1.54735305,105840.0,105820.0,0.36092123]
[1734449778780,0.00141778,105850.0,105830.0,0.57898417]
[1734449778981,0.40999297,105890.0,105840.0,0.57888906]
[1734449779286,0.04722,105880.0,105870.0,0.3608]
[1734449779686,0.047225,105870.0,105860.0,0.3608]
[1734449779886,0.047225,105870.0,105860.0,0.36087284]
[1734449780184,0.047222,105880.0,105860.0,0.5789619]
[1734449780487,0.047222,105880.0,105870.0,0.36086792]
[1734449780784,0.07745317,105890.0,105870.0,0.78456792]
[1734449780992,0.04722,105880.0,105870.0,0.78456792]
[1734449781284,0.00317195,105890.0,105870.0,1.30258906]
[1734449781473,0.00317195,105890.0,105880.0,0.36090765]
[1734449781678,0.05038795,105890.0,105880.0,0.36090765]
[1734449782076,0.26847701,105890.0,105880.0,0.00010765]
[1734449782275,0.05038795,105890.0,105880.0,0.00010765]
[1734449782676,0.05038795,105890.0,105880.0,0.36090765]
[1734449783079,0.00317195,105890.0,105880.0,0.36090765]
[1734449783484,0.1,105900.0,105880.0,0.92621671]
[1734449783680,0.1,105900.0,105890.0,0.57888906]
[1734449783876,0.04728337,105920.0,105890.0,0.91178906]
[1734449784178,0.04728337,105920.0,105910.0,0.7216]
[1734449784381,8.037e-05,105920.0,105910.0,0.9398089]
[1734449784785,0.04728337,105920.0,105910.0,0.72171984]
[1734449784991,0.04728337,105920.0,105910.0,0.00011984]
[1734449785287,0.04728337,105920.0,105910.0,0.36091984]
[1734449785982,8.037e-05,105920.0,105910.0,0.36091984]
[1734449786487,8.037e-05,105920.0,105910.0,0.5790089]
[1734449786683,8.037e-05,105920.0,105910.0,0.57888906]
[1734449786889,8.037e-05,105920.0,105910.0,0.57900163]
[1734449787079,8.037e-05,105920.0,105910.0,0.97948906]
[1734449787390,0.047195,105940.0,105910.0,0.97948906]
[1734449787579,0.00141674,105950.0,105930.0,0.7216]
[1734449787781,0.00141674,105950.0,105920.0,1.0897]
[1734449787981,0.047194,105940.0,105930.0,0.3608]
[1734449788377,0.047194,105940.0,105930.0,0.36088036]
[1734449788693,0.26528306,105940.0,105930.0,8.036e-05]
[1734449788894,0.26528306,105940.0,105890.0,0.7614]
[1734449788895,0.047198,105930.0,105890.0,0.7614]
[1734449789090,0.047212,105900.0,105890.0,0.7614]
[1734449789281,0.047212,105900.0,105890.0,0.3608]
[1734449789584,0.67329506,105920.0,105890.0,0.3608]
[1734449789585,0.047205,105920.0,105890.0,0.3608]
[1734449789783,0.047205,105920.0,105910.0,0.7216]
[1734449790386,0.73664103,105940.0,105910.0,0.72168281]
[1734449790685,0.26528806,105930.0,105920.0,0.3608]
[1734449790893,0.047203,105920.0,105910.0,0.36088281]
[1734449791288,0.047199,105930.0,105910.0,0.57897187]
[1734449791587,0.047199,105930.0,105920.0,0.36091922]
[1734449791786,0.047195,105940.0,105920.0,0.36091922]
[1734449791984,0.047195,105940.0,105930.0,0.3608]
[1734449792383,0.04860774,105950.0,105930.0,0.36091052]
[1734449792583,0.04860774,105950.0,105940.0,0.3608]
[1734449792779,0.047194,105940.0,105930.0,0.36091052]
[1734449792978,0.047194,105940.0,105930.0,0.72171052]
[1734449793184,0.04860674,105950.0,105930.0,0.72171052]
[1734449793384,0.04860674,105950.0,105940.0,0.3608]
[1734449793586,0.04860674,105950.0,105940.0,0.36088805]
[1734449793793,0.00141674,105950.0,105940.0,0.36088805]
[1734449794293,0.047182,105970.0,105940.0,0.57897854]
[1734449794495,0.00141612,105980.0,105960.0,0.3608]
[1734449794793,0.04859312,105980.0,105970.0,0.36089267]
[1734449795588,0.00141612,105980.0,105970.0,0.57898173]
[1734449795789,0.04729207,105990.0,105970.0,0.36089267]
[1734449795988,0.04729207,105990.0,105980.0,0.3608]
[1734449796186,0.26138113,105990.0,105980.0,0.3608]
[1734449796385,0.047176,105980.0,105970.0,0.36089267]
[1734449796584,0.047176,105980.0,105970.0,0.7216]
[1734449797687,0.047176,105980.0,105970.0,0.3608731]
[1734449797894,0.92606506,105980.0,105970.0,7.31e-05]
[1734449798190,0.047185,105960.0,105950.0,0.4168]
[1734449798393,0.047185,105960.0,105950.0,0.69426883]
[1734449798582,0.26527406,105960.0,105950.0,0.27746883]
[1734449798782,0.3608,105980.0,105950.0,0.3608]
[1734449799092,0.3608,105980.0,105960.0,0.00010442]
[1734449799093,0.04718,105980.0,105960.0,0.00010442]
[1734449799285,0.04718,105970.0,105960.0,0.36090442]
[1734449799479,0.04718,105980.0,105960.0,0.36090442]
[1734449799480,0.26526606,105980.0,105960.0,0.36090442]
[1734449799791,0.047177,105980.0,105970.0,0.3608]
[1734449800181,0.047177,105980.0,105970.0,0.58282006]
[1734449800588,0.047177,105980.0,105970.0,0.3608]
[1734449800781,0.04718,105970.0,105960.0,0.58292448]
[1734449801387,0.147168,106000.0,105960.0,0.80101354]
[1734449801589,0.807968,106000.0,105960.0,0.58292448]
[1734449801788,0.047176,105980.0,105970.0,0.22202006]
[1734449802100,0.04718,105970.0,105960.0,0.58292448]
[1734449802398,0.04718,105970.0,105960.0,0.86039331]
[1734449802594,0.04718,105970.0,105960.0,0.63837325]
[1734449802785,0.047177,105980.0,105960.0,0.85646231]
[1734449803097,0.047177,105980.0,105970.0,0.58312718]
[1734449803294,0.1,106000.0,105970.0,1.25659601]
[1734449803497,0.047172,105990.0,105980.0,0.58329212]
[1734449803684,0.047172,105990.0,105980.0,1.19738118]
[1734449803883,0.1,106000.0,105980.0,1.25246266]
[1734449803884,0.147168,106000.0,105980.0,1.25246266]
[1734449804089,0.147168,106000.0,105990.0,0.36089313]
[1734449804401,0.147168,106000.0,105990.0,0.63836196]
[1734449804700,0.147168,106000.0,105990.0,0.36089313]
[1734449805089,0.147168,106000.0,105990.0,0.27756196]
[1734449805305,0.147168,106000.0,105990.0,0.63836196]
[1734449805496,0.147168,106000.0,105990.0,0.36089313]
[1734449806293,0.147168,106000.0,105990.0,0.22300067]
[1734449806500,0.147168,106000.0,105990.0,0.69338435]
[1734449806501,0.147128,106000.0,105990.0,0.69338435]
[1734449806689,0.147128,106000.0,105990.0,1.08621933]
[1734449807000,0.147128,106000.0,105990.0,0.86813027]
[1734449807297,0.36521706,106000.0,105990.0,0.17483905]
[1734449807492,0.36521706,106000.0,105980.0,0.83122806]
[1734449807493,0.047171,105990.0,105980.0,0.29626218]
[1734449807694,0.047176,105980.0,105970.0,0.27403126]
[1734449807891,0.047176,105980.0,105940.0,1.30285847]
[1734449807892,0.047189,105950.0,105940.0,1.30285847]
[1734449808198,0.047185,105960.0,105940.0,0.80802091]
[1734449808390,0.047185,105960.0,105940.0,1.30675775]
[1734449808391,0.047189,105950.0,105940.0,1.30675775]
[1734449808589,0.047189,105950.0,105940.0,0.57898614]
[1734449808997,0.047189,105950.0,105940.0,0.36089708]
[1734449809196,0.047189,105950.0,105940.0,0.44731799]
[1734449809398,0.62607806,105950.0,105940.0,9.708e-05]
[1734449809895,0.62607806,105950.0,105940.0,0.2799421]
[1734449809896,0.407989,105950.0,105940.0,0.2799421]
[1734449810401,0.407989,105950.0,105940.0,0.28013763]
[1734449810699,0.047198,105930.0,105920.0,0.3608]
[1734449811808,0.047198,105930.0,105920.0,0.36088929]
[1734449812001,0.047198,105930.0,105920.0,8.929e-05]
[1734449812193,0.047198,105930.0,105920.0,0.36088929]
[1734449812600,0.43296198,105960.0,105920.0,0.57897835]
[1734449812793,0.43296198,105960.0,105950.0,0.28038298]
[1734449812794,0.43296098,105960.0,105950.0,0.28038298]
[1734449813102,0.43296098,105960.0,105940.0,0.57888906]
[1734449813103,0.047189,105950.0,105940.0,0.57888906]
[1734449813304,0.047189,105950.0,105940.0,0.3608]
[1734449813491,0.047189,105950.0,105940.0,0.80802091]
[1734449813693,0.047189,105950.0,105940.0,0.3608]
[1734449813894,0.047194,105940.0,105930.0,1.35401013]
[1734449814094,0.047194,105940.0,105930.0,1.35353013]
[1734449814299,0.047194,105940.0,105930.0,1.21559329]
[1734449814489,0.047194,105940.0,105930.0,0.85479329]
[1734449815097,0.047194,105940.0,105930.0,0.40757238]
[1734449815393,0.047194,105940.0,105930.0,0.90630922]
[1734449815595,0.047194,105940.0,105930.0,0.49880922]
[1734449815807,0.407994,105940.0,105930.0,0.44922335]
[1734449816194,0.407994,105940.0,105930.0,7.238e-05]
[1734449816902,0.407994,105940.0,105920.0,0.44915097]